[Event "Titled Tuesday Blitz June 6 Late 2023"]
[White "Buchenau, Frank"]
[Black "Sailer, Mike"]
[WhiteFideId "4604350"]
[BlackFideId "2012901"]
[WhiteElo "2157"]
[BlackElo "2109"]
[Result "0-1"]
[Round "3"]
[TimeControl "180+2"]
[Date "2023.06.07"]
[WhiteClock "0:00:01"]
[BlackClock "0:00:04"]
[Board "159"]

1. e4 {[%clk 0:03:00]}  d5 {[%clk 0:02:59]} 2. exd5 {[%clk 0:03:00]}  Qxd5 {[%clk 0:03:00]} 3. Nc3 {[%clk 0:02:59]}  Qd6 {[%clk 0:03:00]} 4. d4 {[%clk 0:02:59]}  Nf6 {[%clk 0:03:01]} 5. Nf3 {[%clk 0:02:59]}  c6 {[%clk 0:03:01]} 6. Ne5 {[%clk 0:02:58]}  Nbd7 {[%clk 0:03:01]} 7. Nc4 {[%clk 0:02:57]}  Qc7 {[%clk 0:03:01]} 8. a4 {[%clk 0:02:58]}  a5 {[%clk 0:03:01]} 9. g3 {[%clk 0:02:53]}  Nb6 {[%clk 0:03:00]} 10. Bf4 {[%clk 0:02:53]}  Qd8 {[%clk 0:03:00]} 11. Ne5 {[%clk 0:02:39]}  Nbd5 {[%clk 0:02:52]} 12. Bg2 {[%clk 0:02:21]}  Nxc3 {[%clk 0:02:48]} 13. bxc3 {[%clk 0:02:21]}  Bf5 {[%clk 0:02:37]} 14. O-O {[%clk 0:02:17]}  e6 {[%clk 0:02:36]} 15. g4 {[%clk 0:02:12]}  Be4 {[%clk 0:02:36]} 16. f3 {[%clk 0:02:12]}  Bg6 {[%clk 0:02:36]} 17. h4 {[%clk 0:02:11]}  Nd5 {[%clk 0:02:30]} 18. Bd2 {[%clk 0:02:05]}  Qxh4 {[%clk 0:02:23]} 19. c4 {[%clk 0:01:42]}  Nf6 {[%clk 0:02:07]} 20. Be1 {[%clk 0:01:38]}  Qh6 {[%clk 0:01:50]} 21. f4 {[%clk 0:01:37]}  Nd7 {[%clk 0:01:16]} 22. g5 {[%clk 0:01:24]}  Qh5 {[%clk 0:01:16]} 23. Bf3 {[%clk 0:01:24]}  Qh3 {[%clk 0:01:11]} 24. Nxd7 {[%clk 0:01:02]}  Kxd7 {[%clk 0:01:08]} 25. Bg4 {[%clk 0:00:50]}  Qe3+ {[%clk 0:01:01]} 26. Rf2 {[%clk 0:00:30]}  Qg3+ {[%clk 0:00:48]} 27. Kf1 {[%clk 0:00:27]}  h5 {[%clk 0:00:37]} 28. Bf3 {[%clk 0:00:21]}  Bb4 {[%clk 0:00:15]} 29. c3 {[%clk 0:00:20]}  Bd6 {[%clk 0:00:12]} 30. Bg2 {[%clk 0:00:13]}  h4 {[%clk 0:00:10]} 31. Rf3 {[%clk 0:00:13]}  Qg4 {[%clk 0:00:09]} 32. Qd2 {[%clk 0:00:11]}  h3 {[%clk 0:00:08]} 33. Bh1 {[%clk 0:00:11]}  h2 {[%clk 0:00:08]} 34. Qg2 {[%clk 0:00:10]}  Qf5 {[%clk 0:00:07]} 35. Bg3 {[%clk 0:00:08]}  Rh7 {[%clk 0:00:07]} 36. Re1 {[%clk 0:00:07]}  Rah8 {[%clk 0:00:06]} 37. Qb2 {[%clk 0:00:07]}  Kc8 {[%clk 0:00:05]} 38. c5 {[%clk 0:00:06]}  Bc7 {[%clk 0:00:05]} 39. c4 {[%clk 0:00:05]}  Rh3 {[%clk 0:00:05]} 40. Rb3 {[%clk 0:00:05]}  Rxg3 {[%clk 0:00:04]} 41. Rxg3 {[%clk 0:00:05]}  Qxf4+ {[%clk 0:00:05]} 42. Qf2 {[%clk 0:00:05]}  Qxg3 {[%clk 0:00:04]} 43. d5 {[%clk 0:00:04]}  Qxf2+ {[%clk 0:00:04]} 44. Kxf2 {[%clk 0:00:05]}  exd5 {[%clk 0:00:05]} 45. cxd5 {[%clk 0:00:05]}  cxd5 {[%clk 0:00:05]} 46. Re7 {[%clk 0:00:05]}  Bf4 {[%clk 0:00:03]} 47. Bxd5 {[%clk 0:00:04]}  Bxg5 {[%clk 0:00:03]} 48. Bxb7+ {[%clk 0:00:03]}  Kd8 {[%clk 0:00:03]} 49. Re1 {[%clk 0:00:01]}  h1=Q {[%clk 0:00:04]} 50. Bxh1 {[%clk 0:00:01]}  Bh4+ {[%clk 0:00:04]} 0-1


[Site "https://www.chess.com"]

[Event "Titled Tuesday Blitz June 6 Late 2023"]
[White "zsizsi99"]
[Black "Vila Dupla, Aurelio"]
[BlackFideId "2203383"]
[WhiteElo "2413"]
[BlackElo "2009"]
[Result "1-0"]
[Round "3"]
[TimeControl "180+2"]
[Date "2023.06.07"]
[WhiteClock "0:00:14"]
[BlackClock "0:00:01"]
[Board "160"]

1. e4 {[%clk 0:02:52]}  c5 {[%clk 0:02:58]} 2. Nf3 {[%clk 0:02:52]}  d6 {[%clk 0:02:57]} 3. d4 {[%clk 0:02:46]}  cxd4 {[%clk 0:02:56]} 4. Nxd4 {[%clk 0:02:46]}  Nf6 {[%clk 0:02:55]} 5. Nc3 {[%clk 0:02:45]}  g6 {[%clk 0:02:55]} 6. Be3 {[%clk 0:02:41]}  Bg7 {[%clk 0:02:54]} 7. f3 {[%clk 0:02:41]}  O-O {[%clk 0:02:54]} 8. Qd2 {[%clk 0:02:41]}  Nc6 {[%clk 0:02:54]} 9. O-O-O {[%clk 0:02:42]}  Nxd4 {[%clk 0:02:54]} 10. Bxd4 {[%clk 0:02:40]}  Be6 {[%clk 0:02:55]} 11. Kb1 {[%clk 0:02:37]}  Qc7 {[%clk 0:02:54]} 12. g4 {[%clk 0:02:00]}  Rfc8 {[%clk 0:02:51]} 13. h4 {[%clk 0:02:00]}  Qa5 {[%clk 0:02:51]} 14. Qg5 {[%clk 0:02:00]}  Qxg5 {[%clk 0:02:46]} 15. hxg5 {[%clk 0:02:01]}  Nd7 {[%clk 0:02:46]} 16. Bxg7 {[%clk 0:02:01]}  Kxg7 {[%clk 0:02:47]} 17. Be2 {[%clk 0:01:56]}  a6 {[%clk 0:02:22]} 18. Rh4 {[%clk 0:01:55]}  b5 {[%clk 0:02:13]} 19. Rdh1 {[%clk 0:01:54]}  Nf8 {[%clk 0:02:13]} 20. f4 {[%clk 0:01:53]}  Bc4 {[%clk 0:02:11]} 21. Bf3 {[%clk 0:01:52]}  Ra7 {[%clk 0:02:09]} 22. Nd1 {[%clk 0:01:35]}  Rac7 {[%clk 0:01:42]} 23. Ne3 {[%clk 0:01:36]}  b4 {[%clk 0:01:29]} 24. R4h2 {[%clk 0:01:27]}  a5 {[%clk 0:01:24]} 25. b3 {[%clk 0:01:26]}  Bb5 {[%clk 0:01:12]} 26. Nd5 {[%clk 0:01:24]}  Ra7 {[%clk 0:01:08]} 27. f5 {[%clk 0:01:23]}  Rc3 {[%clk 0:00:19]} 28. Nxc3 {[%clk 0:01:12]}  bxc3 {[%clk 0:00:18]} 29. Re1 {[%clk 0:01:03]}  Rd7 {[%clk 0:00:07]} 30. Re3 {[%clk 0:01:02]}  Rc7 {[%clk 0:00:06]} 31. Rh3 {[%clk 0:00:55]}  Nd7 {[%clk 0:00:06]} 32. Bg2 {[%clk 0:00:47]}  Ne5 {[%clk 0:00:06]} 33. Rxc3 {[%clk 0:00:47]}  Rb7 {[%clk 0:00:05]} 34. Rhg3 {[%clk 0:00:45]}  Rd7 {[%clk 0:00:05]} 35. Kb2 {[%clk 0:00:38]}  Bc6 {[%clk 0:00:05]} 36. a3 {[%clk 0:00:31]}  Bb7 {[%clk 0:00:04]} 37. Rce3 {[%clk 0:00:26]}  f6 {[%clk 0:00:04]} 38. gxf6+ {[%clk 0:00:23]}  Kxf6 {[%clk 0:00:05]} 39. g5+ {[%clk 0:00:23]}  Kg7 {[%clk 0:00:05]} 40. Bh3 {[%clk 0:00:22]}  Rc7 {[%clk 0:00:03]} 41. c4 {[%clk 0:00:20]}  Bc6 {[%clk 0:00:02]} 42. Kc3 {[%clk 0:00:19]}  a4 {[%clk 0:00:03]} 43. b4 {[%clk 0:00:19]}  Bb7 {[%clk 0:00:02]} 44. Bf1 {[%clk 0:00:16]}  Ba6 {[%clk 0:00:03]} 45. fxg6 {[%clk 0:00:14]}  hxg6 {[%clk 0:00:02]} 46. b5 {[%clk 0:00:12]}  Bxb5 {[%clk 0:00:02]} 47. Kb4 {[%clk 0:00:13]}  Bxc4 {[%clk 0:00:01]} 48. Bxc4 {[%clk 0:00:13]}  Rxc4+ {[%clk 0:00:01]} 49. Kb5 {[%clk 0:00:14]} 1-0


[Site "https://www.chess.com"]

[Event "Titled Tuesday Blitz June 6 Late 2023"]
[White "Jaivardhan Raj"]
[Black "Pesotskiy, Mikhail"]
[WhiteFideId "25744437"]
[BlackFideId "34164453"]
[WhiteElo "1772"]
[BlackElo "2131"]
[Result "1-0"]
[Round "3"]
[TimeControl "180+2"]
[Date "2023.06.07"]
[WhiteClock "0:01:06"]
[BlackClock "0:00:32"]
[Board "161"]

1. e4 {[%clk 0:03:00]}  e6 {[%clk 0:03:00]} 2. d4 {[%clk 0:03:00]}  d5 {[%clk 0:02:59]} 3. Nd2 {[%clk 0:03:01]}  Nf6 {[%clk 0:02:59]} 4. e5 {[%clk 0:03:01]}  Nfd7 {[%clk 0:03:00]} 5. Bd3 {[%clk 0:03:01]}  c5 {[%clk 0:03:00]} 6. c3 {[%clk 0:03:02]}  Nc6 {[%clk 0:03:01]} 7. Ne2 {[%clk 0:03:02]}  cxd4 {[%clk 0:03:02]} 8. cxd4 {[%clk 0:03:03]}  f6 {[%clk 0:03:03]} 9. exf6 {[%clk 0:03:02]}  Qxf6 {[%clk 0:03:04]} 10. Nf3 {[%clk 0:03:02]}  h6 {[%clk 0:03:04]} 11. O-O {[%clk 0:02:59]}  Bd6 {[%clk 0:03:05]} 12. Be3 {[%clk 0:02:59]}  O-O {[%clk 0:03:05]} 13. h3 {[%clk 0:02:59]}  Rd8 {[%clk 0:03:05]} 14. Rc1 {[%clk 0:02:59]}  Nf8 {[%clk 0:03:06]} 15. Bb1 {[%clk 0:03:00]}  Bd7 {[%clk 0:03:07]} 16. a3 {[%clk 0:03:00]}  Be8 {[%clk 0:03:07]} 17. b4 {[%clk 0:03:00]}  a6 {[%clk 0:03:07]} 18. Nc3 {[%clk 0:02:57]}  Bg6 {[%clk 0:03:07]} 19. Bxg6 {[%clk 0:02:56]}  Nxg6 {[%clk 0:03:08]} 20. Na4 {[%clk 0:02:55]}  Rf8 {[%clk 0:03:06]} 21. Nb6 {[%clk 0:02:53]}  Rad8 {[%clk 0:03:04]} 22. Qe2 {[%clk 0:02:49]}  Rf7 {[%clk 0:02:51]} 23. Rfe1 {[%clk 0:02:47]}  Bc7 {[%clk 0:02:39]} 24. Na4 {[%clk 0:02:43]}  e5 {[%clk 0:02:37]} 25. dxe5 {[%clk 0:02:39]}  Ngxe5 {[%clk 0:02:34]} 26. Nxe5 {[%clk 0:02:35]}  Bxe5 {[%clk 0:02:35]} 27. Bb6 {[%clk 0:02:27]}  Rdf8 {[%clk 0:01:59]} 28. Bc5 {[%clk 0:02:08]}  Re8 {[%clk 0:01:58]} 29. Qd2 {[%clk 0:01:58]}  d4 {[%clk 0:01:48]} 30. Re2 {[%clk 0:01:40]}  Rd8 {[%clk 0:00:51]} 31. Bb6 {[%clk 0:01:31]}  Rdf8 {[%clk 0:00:46]} 32. Bc5 {[%clk 0:01:31]}  Bf4 {[%clk 0:00:46]} 33. Qc2 {[%clk 0:01:16]}  Bxc1 {[%clk 0:00:47]} 34. Bxf8 {[%clk 0:01:14]}  Bxa3 {[%clk 0:00:46]} 35. Bc5 {[%clk 0:01:10]}  Bxb4 {[%clk 0:00:45]} 36. Re8+ {[%clk 0:01:10]}  Rf8 {[%clk 0:00:36]} 37. Rxf8+ {[%clk 0:01:07]}  Qxf8 {[%clk 0:00:36]} 38. Bxf8 {[%clk 0:01:07]}  Bxf8 {[%clk 0:00:36]} 39. Qb3+ {[%clk 0:01:07]}  Kh7 {[%clk 0:00:32]} 40. Qxb7 {[%clk 0:01:06]} 1-0


[Site "https://www.chess.com"]

[Event "Titled Tuesday Blitz June 6 Late 2023"]
[White "Martin Barcelo, Carles"]
[Black "KSho99"]
[WhiteFideId "24561444"]
[WhiteElo "2089"]
[BlackElo "2190"]
[Result "1-0"]
[Round "3"]
[TimeControl "180+2"]
[Date "2023.06.07"]
[WhiteClock "0:00:26"]
[BlackClock "0:00:03"]
[Board "162"]

1. e4 {[%clk 0:02:55]}  b6 {[%clk 0:02:58]} 2. d4 {[%clk 0:02:54]}  Bb7 {[%clk 0:02:58]} 3. Bd3 {[%clk 0:02:55]}  g6 {[%clk 0:02:56]} 4. Nf3 {[%clk 0:02:53]}  Bg7 {[%clk 0:02:56]} 5. O-O {[%clk 0:02:53]}  d6 {[%clk 0:02:55]} 6. c4 {[%clk 0:02:53]}  Nd7 {[%clk 0:02:54]} 7. Nc3 {[%clk 0:02:53]}  e6 {[%clk 0:02:51]} 8. Bg5 {[%clk 0:02:50]}  Ne7 {[%clk 0:02:51]} 9. Qd2 {[%clk 0:02:51]}  h6 {[%clk 0:02:51]} 10. Be3 {[%clk 0:02:50]}  Nf6 {[%clk 0:02:40]} 11. h3 {[%clk 0:02:48]}  g5 {[%clk 0:02:39]} 12. e5 {[%clk 0:02:36]}  Nd7 {[%clk 0:02:30]} 13. Be4 {[%clk 0:02:31]}  Bxe4 {[%clk 0:02:10]} 14. Nxe4 {[%clk 0:02:30]}  dxe5 {[%clk 0:02:11]} 15. dxe5 {[%clk 0:02:29]}  Nxe5 {[%clk 0:02:11]} 16. Qe2 {[%clk 0:02:21]}  Nxf3+ {[%clk 0:01:58]} 17. Qxf3 {[%clk 0:02:22]}  Nf5 {[%clk 0:01:49]} 18. Rad1 {[%clk 0:02:20]}  Qc8 {[%clk 0:01:48]} 19. Rd2 {[%clk 0:01:30]}  O-O {[%clk 0:01:43]} 20. Rfd1 {[%clk 0:01:29]}  Nxe3 {[%clk 0:01:40]} 21. fxe3 {[%clk 0:01:27]}  f5 {[%clk 0:01:36]} 22. Ng3 {[%clk 0:01:23]}  Rf7 {[%clk 0:01:16]} 23. Nh5 {[%clk 0:01:08]}  c5 {[%clk 0:00:58]} 24. e4 {[%clk 0:01:00]}  Qc6 {[%clk 0:00:48]} 25. Rd8+ {[%clk 0:00:51]}  Rxd8 {[%clk 0:00:48]} 26. Rxd8+ {[%clk 0:00:51]}  Kh7 {[%clk 0:00:48]} 27. Nxg7 {[%clk 0:00:46]}  Kxg7 {[%clk 0:00:47]} 28. Qc3+ {[%clk 0:00:44]}  Kh7 {[%clk 0:00:30]} 29. Rh8+ {[%clk 0:00:31]}  Kg6 {[%clk 0:00:30]} 30. Rg8+ {[%clk 0:00:31]}  Kh5 {[%clk 0:00:29]} 31. Qf3+ {[%clk 0:00:32]}  Kh4 {[%clk 0:00:13]} 32. Kh2 {[%clk 0:00:26]}  f4 {[%clk 0:00:03]} 33. Qg4# {[%clk 0:00:26]} 1-0


[Site "https://www.chess.com"]

[Event "Titled Tuesday Blitz June 6 Late 2023"]
[White "MrAnnihilation"]
[Black "Araujo Filho, Luiz Antonio Coel"]
[BlackFideId "2130661"]
[WhiteElo "2395"]
[BlackElo "2056"]
[Result "1-0"]
[Round "3"]
[TimeControl "180+2"]
[Date "2023.06.07"]
[WhiteClock "0:00:06"]
[BlackClock "0:00:04"]
[Board "165"]

1. e4 {[%clk 0:03:00]}  c6 {[%clk 0:02:59]} 2. d4 {[%clk 0:03:00]}  d5 {[%clk 0:03:00]} 3. exd5 {[%clk 0:03:00]}  cxd5 {[%clk 0:03:00]} 4. Bd3 {[%clk 0:03:01]}  Nf6 {[%clk 0:03:01]} 5. h3 {[%clk 0:03:01]}  Nc6 {[%clk 0:03:01]} 6. c3 {[%clk 0:03:01]}  e6 {[%clk 0:03:02]} 7. Bf4 {[%clk 0:03:00]}  Be7 {[%clk 0:03:02]} 8. Nd2 {[%clk 0:02:58]}  O-O {[%clk 0:03:02]} 9. Ngf3 {[%clk 0:02:58]}  a6 {[%clk 0:03:03]} 10. O-O {[%clk 0:02:52]}  b5 {[%clk 0:03:03]} 11. a3 {[%clk 0:02:52]}  Bb7 {[%clk 0:02:56]} 12. Qe2 {[%clk 0:02:51]}  Na5 {[%clk 0:02:54]} 13. Ne5 {[%clk 0:02:51]}  Nc4 {[%clk 0:02:42]} 14. Rab1 {[%clk 0:02:48]}  Rc8 {[%clk 0:02:39]} 15. Rfe1 {[%clk 0:02:44]}  Nxd2 {[%clk 0:02:24]} 16. Qxd2 {[%clk 0:02:36]}  Ne4 {[%clk 0:02:25]} 17. Qe3 {[%clk 0:02:31]}  Bf6 {[%clk 0:02:05]} 18. g4 {[%clk 0:02:23]}  g6 {[%clk 0:02:04]} 19. f3 {[%clk 0:02:02]}  Nd6 {[%clk 0:02:00]} 20. Bh6 {[%clk 0:01:28]}  Re8 {[%clk 0:01:44]} 21. Re2 {[%clk 0:01:13]}  Nc4 {[%clk 0:01:35]} 22. Qf4 {[%clk 0:01:13]}  Nxe5 {[%clk 0:01:29]} 23. dxe5 {[%clk 0:01:13]}  Bg7 {[%clk 0:01:29]} 24. h4 {[%clk 0:01:04]}  f6 {[%clk 0:01:11]} 25. Bxg7 {[%clk 0:00:53]}  Kxg7 {[%clk 0:01:09]} 26. h5 {[%clk 0:00:37]}  f5 {[%clk 0:00:31]} 27. gxf5 {[%clk 0:00:18]}  exf5 {[%clk 0:00:28]} 28. Rg2 {[%clk 0:00:14]}  Kf7 {[%clk 0:00:04]} 29. Bxf5 {[%clk 0:00:06]} 1-0


[Site "https://www.chess.com"]

[Event "Titled Tuesday Blitz June 6 Late 2023"]
[White "Smiechu"]
[Black "Winkels, Marcel"]
[BlackFideId "1003887"]
[WhiteElo "2375"]
[BlackElo "1900"]
[Result "1-0"]
[Round "3"]
[TimeControl "180+2"]
[Date "2023.06.07"]
[WhiteClock "0:01:21"]
[BlackClock "0:00:37"]
[Board "169"]

1. e4 {[%clk 0:03:00]}  Nf6 {[%clk 0:02:58]} 2. e5 {[%clk 0:03:00]}  Nd5 {[%clk 0:02:59]} 3. c4 {[%clk 0:03:01]}  Nb6 {[%clk 0:02:58]} 4. a4 {[%clk 0:03:01]}  a5 {[%clk 0:02:52]} 5. Ra3 {[%clk 0:03:00]}  d6 {[%clk 0:02:37]} 6. exd6 {[%clk 0:02:59]}  exd6 {[%clk 0:02:36]} 7. Rg3 {[%clk 0:02:56]}  Be6 {[%clk 0:02:35]} 8. b3 {[%clk 0:02:54]}  N8d7 {[%clk 0:02:18]} 9. d4 {[%clk 0:02:52]}  Nf6 {[%clk 0:02:17]} 10. Nc3 {[%clk 0:02:47]}  g6 {[%clk 0:02:05]} 11. h4 {[%clk 0:02:44]}  h6 {[%clk 0:02:01]} 12. Bd3 {[%clk 0:02:43]}  Bg7 {[%clk 0:02:00]} 13. h5 {[%clk 0:02:36]}  g5 {[%clk 0:01:59]} 14. f4 {[%clk 0:02:36]}  Nh7 {[%clk 0:01:48]} 15. Nf3 {[%clk 0:02:24]}  g4 {[%clk 0:01:45]} 16. f5 {[%clk 0:02:18]}  Bd7 {[%clk 0:01:31]} 17. Rxg4 {[%clk 0:01:58]}  Kf8 {[%clk 0:01:12]} 18. Qd2 {[%clk 0:01:41]}  Qf6 {[%clk 0:01:11]} 19. Ne4 {[%clk 0:01:36]}  Qe7 {[%clk 0:00:51]} 20. Rxg7 {[%clk 0:01:33]}  Kxg7 {[%clk 0:00:50]} 21. Qxh6+ {[%clk 0:01:33]}  Kg8 {[%clk 0:00:50]} 22. Rh3 {[%clk 0:01:32]}  Bxf5 {[%clk 0:00:39]} 23. Rg3+ {[%clk 0:01:27]}  Bg6 {[%clk 0:00:38]} 24. hxg6 {[%clk 0:01:25]}  Nf6 {[%clk 0:00:38]} 25. gxf7+ {[%clk 0:01:22]}  Kxf7 {[%clk 0:00:38]} 26. Rg7+ {[%clk 0:01:21]}  Kf8 {[%clk 0:00:37]} 27. Qxh8+ {[%clk 0:01:21]} 1-0


[Site "https://www.chess.com"]

[Event "Titled Tuesday Blitz June 6 Late 2023"]
[White "zano2023"]
[Black "Rama, Tejas"]
[BlackFideId "30907381"]
[WhiteElo "2130"]
[BlackElo "2089"]
[Result "0-1"]
[Round "3"]
[TimeControl "180+2"]
[Date "2023.06.07"]
[WhiteClock "0:00:28"]
[BlackClock "0:00:49"]
[Board "170"]

1. c4 {[%clk 0:03:00]}  Nf6 {[%clk 0:02:58]} 2. Nc3 {[%clk 0:03:00]}  e6 {[%clk 0:02:58]} 3. g3 {[%clk 0:02:58]}  d5 {[%clk 0:02:58]} 4. d4 {[%clk 0:02:58]}  c5 {[%clk 0:02:46]} 5. cxd5 {[%clk 0:02:53]}  Nxd5 {[%clk 0:02:45]} 6. Nf3 {[%clk 0:02:53]}  Nxc3 {[%clk 0:02:34]} 7. bxc3 {[%clk 0:02:53]}  cxd4 {[%clk 0:02:34]} 8. cxd4 {[%clk 0:02:54]}  Bb4+ {[%clk 0:02:35]} 9. Bd2 {[%clk 0:02:53]}  Bxd2+ {[%clk 0:02:36]} 10. Qxd2 {[%clk 0:02:52]}  b6 {[%clk 0:02:37]} 11. Bg2 {[%clk 0:02:52]}  Bb7 {[%clk 0:02:37]} 12. O-O {[%clk 0:02:53]}  O-O {[%clk 0:02:37]} 13. a4 {[%clk 0:02:30]}  a5 {[%clk 0:02:31]} 14. Rab1 {[%clk 0:02:18]}  Na6 {[%clk 0:02:25]} 15. e3 {[%clk 0:02:09]}  Nb4 {[%clk 0:02:23]} 16. Rfc1 {[%clk 0:02:06]}  Be4 {[%clk 0:02:20]} 17. Rb3 {[%clk 0:02:02]}  Qd5 {[%clk 0:02:11]} 18. Rxb4 {[%clk 0:01:39]}  axb4 {[%clk 0:02:08]} 19. Nh4 {[%clk 0:01:36]}  Bxg2 {[%clk 0:02:05]} 20. Nxg2 {[%clk 0:01:37]}  Rxa4 {[%clk 0:02:04]} 21. Rb1 {[%clk 0:01:38]}  Rfa8 {[%clk 0:01:56]} 22. Nf4 {[%clk 0:01:33]}  Qe4 {[%clk 0:01:51]} 23. Nd3 {[%clk 0:01:15]}  Ra2 {[%clk 0:01:47]} 24. Qd1 {[%clk 0:01:09]}  b3 {[%clk 0:01:26]} 25. Qxb3 {[%clk 0:00:59]}  Ra1 {[%clk 0:01:03]} 26. Qxb6 {[%clk 0:00:55]}  Qxd3 {[%clk 0:00:59]} 27. Rxa1 {[%clk 0:00:44]}  Rxa1+ {[%clk 0:01:00]} 28. Kg2 {[%clk 0:00:42]}  Qe4+ {[%clk 0:00:59]} 29. Kh3 {[%clk 0:00:41]}  h5 {[%clk 0:00:58]} 30. Qd8+ {[%clk 0:00:39]}  Kh7 {[%clk 0:00:58]} 31. Qg5 {[%clk 0:00:34]}  Qf5+ {[%clk 0:00:48]} 32. Qxf5+ {[%clk 0:00:33]}  exf5 {[%clk 0:00:49]} 33. Kh4 {[%clk 0:00:31]}  Kh6 {[%clk 0:00:49]} 34. h3 {[%clk 0:00:28]}  g5# {[%clk 0:00:49]} 0-1


[Site "https://www.chess.com"]

[Event "Titled Tuesday Blitz June 6 Late 2023"]
[White "Prydun, Andriy"]
[Black "NtcPou"]
[WhiteFideId "14145898"]
[WhiteElo "2164"]
[BlackElo "2053"]
[Result "1-0"]
[Round "3"]
[TimeControl "180+2"]
[Date "2023.06.07"]
[WhiteClock "0:01:41"]
[BlackClock "0:00:08"]
[Board "175"]

1. e4 {[%clk 0:03:00]}  c6 {[%clk 0:02:58]} 2. d4 {[%clk 0:02:57]}  d5 {[%clk 0:02:58]} 3. e5 {[%clk 0:02:56]}  Bf5 {[%clk 0:02:57]} 4. Bd3 {[%clk 0:02:56]}  Bxd3 {[%clk 0:02:55]} 5. cxd3 {[%clk 0:02:56]}  e6 {[%clk 0:02:54]} 6. Nc3 {[%clk 0:02:55]}  c5 {[%clk 0:02:53]} 7. dxc5 {[%clk 0:02:56]}  Bxc5 {[%clk 0:02:49]} 8. d4 {[%clk 0:02:57]}  Be7 {[%clk 0:02:44]} 9. Qg4 {[%clk 0:02:56]}  g6 {[%clk 0:02:43]} 10. Qd1 {[%clk 0:02:56]}  Nc6 {[%clk 0:02:42]} 11. Nf3 {[%clk 0:02:56]}  h5 {[%clk 0:02:38]} 12. O-O {[%clk 0:02:55]}  Nh6 {[%clk 0:02:38]} 13. Bxh6 {[%clk 0:02:55]}  Rxh6 {[%clk 0:02:37]} 14. Rc1 {[%clk 0:02:54]}  h4 {[%clk 0:02:21]} 15. h3 {[%clk 0:02:53]}  Rh5 {[%clk 0:02:09]} 16. Ne2 {[%clk 0:02:50]}  Rc8 {[%clk 0:02:05]} 17. Qb3 {[%clk 0:02:49]}  b6 {[%clk 0:01:56]} 18. Qa4 {[%clk 0:02:45]}  Qd7 {[%clk 0:01:56]} 19. Rc2 {[%clk 0:02:45]}  Nd8 {[%clk 0:01:28]} 20. Qb3 {[%clk 0:02:38]}  Rxc2 {[%clk 0:01:09]} 21. Qxc2 {[%clk 0:02:38]}  Qc6 {[%clk 0:01:09]} 22. Qd2 {[%clk 0:02:37]}  Kd7 {[%clk 0:01:06]} 23. Rc1 {[%clk 0:02:37]}  Qb7 {[%clk 0:00:59]} 24. b4 {[%clk 0:02:04]}  b5 {[%clk 0:00:51]} 25. Nf4 {[%clk 0:02:01]}  Rf5 {[%clk 0:00:43]} 26. Nd3 {[%clk 0:02:02]}  Nc6 {[%clk 0:00:30]} 27. Nc5+ {[%clk 0:01:53]}  Bxc5 {[%clk 0:00:20]} 28. Rxc5 {[%clk 0:01:54]}  Rh5 {[%clk 0:00:19]} 29. a4 {[%clk 0:01:53]}  bxa4 {[%clk 0:00:19]} 30. b5 {[%clk 0:01:54]}  Nd8 {[%clk 0:00:16]} 31. Qa5 {[%clk 0:01:54]}  Qb6 {[%clk 0:00:16]} 32. Qxa4 {[%clk 0:01:54]}  Nb7 {[%clk 0:00:15]} 33. Rc6 {[%clk 0:01:53]}  Qa5 {[%clk 0:00:15]} 34. Qc2 {[%clk 0:01:51]}  Rh8 {[%clk 0:00:13]} 35. b6 {[%clk 0:01:45]}  Rb8 {[%clk 0:00:09]} 36. Rc7+ {[%clk 0:01:42]}  Kd8 {[%clk 0:00:09]} 37. Qc6 {[%clk 0:01:41]}  Qxb6 {[%clk 0:00:08]} 38. Qd7# {[%clk 0:01:41]} 1-0


[Site "https://www.chess.com"]

[Event "Titled Tuesday Blitz June 6 Late 2023"]
[White "Francisco_Ferrari"]
[Black "Dmitriev, Sergey"]
[BlackFideId "14101785"]
[WhiteElo "2175"]
[BlackElo "2132"]
[Result "1-0"]
[Round "3"]
[TimeControl "180+2"]
[Date "2023.06.07"]
[WhiteClock "0:00:35"]
[BlackClock "0:01:12"]
[Board "176"]

1. Nf3 {[%clk 0:03:00]}  d6 {[%clk 0:02:58]} 2. d4 {[%clk 0:03:00]}  g6 {[%clk 0:02:58]} 3. a4 {[%clk 0:02:54]}  Bg7 {[%clk 0:02:57]} 4. e3 {[%clk 0:02:54]}  e6 {[%clk 0:02:56]} 5. Be2 {[%clk 0:02:54]}  a6 {[%clk 0:02:56]} 6. Nbd2 {[%clk 0:02:53]}  Ne7 {[%clk 0:02:57]} 7. c4 {[%clk 0:02:53]}  Nd7 {[%clk 0:02:57]} 8. b4 {[%clk 0:02:48]}  b6 {[%clk 0:02:56]} 9. Bb2 {[%clk 0:02:43]}  Bb7 {[%clk 0:02:56]} 10. O-O {[%clk 0:02:43]}  O-O {[%clk 0:02:53]} 11. a5 {[%clk 0:02:43]}  bxa5 {[%clk 0:02:50]} 12. Rxa5 {[%clk 0:02:43]}  h6 {[%clk 0:02:48]} 13. Qa1 {[%clk 0:02:23]}  f5 {[%clk 0:02:29]} 14. d5 {[%clk 0:01:55]}  e5 {[%clk 0:02:28]} 15. Rd1 {[%clk 0:01:41]}  Nf6 {[%clk 0:02:27]} 16. c5 {[%clk 0:01:22]}  Bxd5 {[%clk 0:02:11]} 17. cxd6 {[%clk 0:01:17]}  cxd6 {[%clk 0:02:10]} 18. Rxa6 {[%clk 0:01:08]}  Rxa6 {[%clk 0:02:03]} 19. Qxa6 {[%clk 0:01:09]}  e4 {[%clk 0:01:46]} 20. Nd4 {[%clk 0:01:05]}  Bf7 {[%clk 0:01:41]} 21. Nc4 {[%clk 0:00:52]}  Bxc4 {[%clk 0:01:31]} 22. Bxc4+ {[%clk 0:00:51]}  d5 {[%clk 0:01:32]} 23. Ne6 {[%clk 0:00:46]}  Qd7 {[%clk 0:01:18]} 24. Nxf8 {[%clk 0:00:41]}  Bxf8 {[%clk 0:01:18]} 25. Qxf6 {[%clk 0:00:38]}  Nc8 {[%clk 0:01:12]} 26. Bxd5+ {[%clk 0:00:35]} 1-0


[Site "https://www.chess.com"]